[Event "CCT Chessable Masters Playoffs 2025"]
[Site "Online"]
[Date "2025.02.18"]
[Round "51"]
[White "So, Wesley"]
[Black "Esipenko, Andrey"]
[Result "1/2-1/2"]
[Annotator "TA"]
[ECO "E51"]
[WhiteElo "2747"]
[BlackElo "2695"]
[PlyCount "123"]
[EventDate "2025.02.13"]
[EventType "k.o."]
[EventCountry "NET"]
[SourceTitle "playchess.com"]
[Source "ChessBase"]
[SourceQuality "1"]
[TimeControl "600"]

{[%evp 10,123,4,0,11,-3,25,6,15,17,22,4,20,10,12,19,10,25,47,38,52,49,57,53,79,72,72,66,73,48,57,49,73,61,67,62,54,52,63,51,56,59,69,73,65,61,66,64,56,51,75,53,62,30,37,36,68,30,27,38,21,20,20,9,30,23,64,71,70,0,0,0,10,16,19,24,40,40,40,40,40,40,40,41,41,0,37,34,41,41,43,0,0,0,0,0,0,0,0,0,0,0,0,0,0,0,0,0,0,0,0,0,0,0,0,0]} 1. d4 {[%emt 0:00:05]} Nf6 {[%emt 0:00:02]} 2. c4 {[%emt 0:00:02]} e6 {[%emt 0:00:00]} 3. Nc3 {[%emt 0:00:03]} Bb4 {[%emt 0:00:01]} 4. e3 {[%emt 0:00:01]} O-O {[%emt 0:00:03]} 5. Bd2 {[%emt 0:00:01][%cal Bc1d2,Bd2c3,Bc3d4][%mdl 32]} d5 {[%emt 0:00:02]} 6. Nf3 $1 {[%emt 0:00:02]} Re8 {[%emt 0:00:03] E51: Nimzo-Indian: Rubinstein: 4...0-0 5 Nf3 d5.} 7. Qc2 {[%emt 0:00:11]} c5 {[%emt 0:00:04]} 8. a3 {[%emt 0:00:06]} Bxc3 {[%emt 0:00:05]} 9. Bxc3 {[%emt 0:00:00]} cxd4 {[%emt 0:00:03]} 10. Bxd4 {[%emt 0:00:14]} Nc6 {[%emt 0:00:18]} 11. Bc3 {[%emt 0:00:17]} Ne4 {[%emt 0:01:45]} 12. Rd1 {[%emt 0:00:11]} Nxc3 {[%emt 0:00:05]} 13. Qxc3 {[%emt 0:00:00]} Qd6 $146 {[%emt 0:00:08]} (13... Ne7 14. Bd3 Bd7 15. O-O Qc7 16. Ne5 Red8 17. Nxd7 Rxd7 18. Qc2 g6 19. cxd5 Qxc2 20. Bxc2 Nxd5 {½-½ Zakhartsov,V (2506)-Paravyan,D (2629) RUS-ch Higher League 74th 2021 (2)}) 14. Be2 {[%emt 0:00:20]} Bd7 {[%emt 0:00:03]} 15. cxd5 {[%emt 0:00:16]} exd5 {[%emt 0:00:01]} 16. O-O {[%emt 0:00:06]} Rad8 {[%emt 0:00:07]} 17. Nd4 {[%emt 0:00:19]} Ne5 {[%emt 0:00:04]} 18. Rd2 {[%emt 0:00:08]} Qg6 {[%emt 0:00:06]} 19. Qc2 {[%emt 0:00:09]} Qb6 {[%emt 0:01:21]} 20. Nf3 {[%emt 0:00:37]} Bg4 {[%emt 0:01:11]} 21. Nxe5 {[%emt 0:00:36]} Bxe2 {[%emt 0:00:02]} 22. Rxe2 {[%emt 0:00:03]} ({Not} 22. Nxf7 $2 Bxf1 (22... Rc8 23. Qf5 $17) 23. Nxd8 Bc4 $19 (23... Ba6 24. Rxd5 Rxd8 25. Rxd8+ Qxd8 26. Qb3+ Kh8 27. h3 $19)) 22... Rxe5 {[%emt 0:00:00]} 23. Rd2 {[%emt 0:00:05][%cal Be2d2,Bd2d4,Bd4a4][%mdl 32]} h5 {[%emt 0:00:16]} 24. Rd4 {[%emt 0:00:12]} Qc6 {[%emt 0:00:09]} 25. Rc1 {[%emt 0:00:36]} Rc8 {[%emt 0:00:09]} 26. Qxc6 {[%emt 0:00:07]} Rxc6 {[%emt 0:00:00]} 27. Rxc6 {[%emt 0:00:06]} bxc6 $14 {[%emt 0:00:00][%mdl 4096] Endgame KR-KR} 28. Kf1 {[%emt 0:00:01]} Re7 {[%emt 0:00:14]} 29. Ra4 {[%emt 0:00:09]} Kf8 {[%emt 0:00:15]} 30. b4 {[%emt 0:00:06]} Ke8 {[%emt 0:00:38]} 31. Ra6 {[%emt 0:00:09]} Rc7 {[%emt 0:00:03]} 32. Ke2 {[%emt 0:00:00]} Kd7 {[%emt 0:00:00]} 33. Kd3 {[%emt 0:00:01]} Kc8 {[%emt 0:00:01]} 34. Ra5 {[%emt 0:00:12]} Kb7 {[%emt 0:00:02]} 35. Kd4 {[%emt 0:00:39]} Re7 {[%emt 0:00:02]} 36. f3 {[%emt 0:00:14]} Kb6 {[%emt 0:00:12]} 37. Rc5 {[%emt 0:00:04]} Re6 {[%emt 0:00:16]} 38. a4 $1 {[%emt 0:00:04]} a6 {[%emt 0:00:09]} 39. Rc2 {[%emt 0:00:56]} ({White should try} 39. e4 $14) 39... a5 $11 {[%emt 0:00:12]} 40. Rb2 {[%emt 0:00:01]} axb4 {[%emt 0:00:13]} 41. Rxb4+ {[%emt 0:00:00]} Ka5 {[%emt 0:00:01]} 42. Rb7 {[%emt 0:00:02]} Rg6 {[%emt 0:00:08]} 43. g3 {[%emt 0:00:28]} Rf6 {[%emt 0:00:02]} 44. f4 {[%emt 0:00:00]} Kxa4 {[%emt 0:00:02]} 45. Kc5 {[%emt 0:00:01]} g6 {[%emt 0:00:08]} 46. Rb4+ {[%emt 0:00:06]} Ka3 {[%emt 0:00:03]} 47. Rb7 {[%emt 0:00:01]} Ka4 {[%emt 0:00:07]} 48. Rb6 {[%emt 0:00:28]} Re6 {[%emt 0:00:05]} 49. Rxc6 {[%emt 0:00:02]} Rxe3 {[%emt 0:00:01]} 50. Kxd5 {[%emt 0:00:00] [#]} Re2 $1 {[%emt 0:00:01] The position is equal.} 51. h4 {[%emt 0:00:30]} Re3 {[%emt 0:00:03]} 52. Rf6 {[%emt 0:00:02]} Rxg3 {[%emt 0:00:01]} 53. Rxf7 {[%emt 0:00:01] Strongly threatening f5.} Rg4 {[%emt 0:00:01]} 54. f5 {[%emt 0:00:08]} gxf5 {[%emt 0:00:02]} 55. Rxf5 {[%emt 0:00:00]} Rxh4 {[%emt 0:00:01]} 56. Ke5 {[%emt 0:00:02]} Kb3 {[%emt 0:00:02]} 57. Kf6 {[%emt 0:00:01]} Rh1 {[%emt 0:00:02]} 58. Kg5 {[%emt 0:00:00]} h4 {[%emt 0:00:00]} 59. Kg4 {[%emt 0:00:02]} h3 {[%emt 0:00:00]} 60. Rf3+ {[%emt 0:00:00]} Kc4 {[%emt 0:00:01]} 61. Rxh3 {[%emt 0:00:01]} Rxh3 {[%emt 0:00:00]} 62. Kxh3 {[%emt 0:00:00] Weighted Error Value: White=0.07 (flawless) /Black=0.06 (flawless)   Mistake:       	White=1     	---        Inaccurate:     	White=3     	Black=3      OK:         	White=21    	Black=26     Best:        	---       	Black=5      Strong:       	White=1     	Black=1} 1/2-1/2

[Event "CCT Chessable Masters Playoffs 2025"]
[Site "Online"]
[Date "2025.02.18"]
[Round "51"]
[White "Praggnanandhaa R"]
[Black "Artemiev, Vladislav"]
[Result "1/2-1/2"]
[Annotator "TA"]
[ECO "A45"]
[WhiteElo "2741"]
[BlackElo "2691"]
[PlyCount "140"]
[EventDate "2025.02.13"]
[EventType "k.o."]
[EventCountry "NET"]
[SourceTitle "playchess.com"]
[Source "ChessBase"]
[SourceQuality "1"]
[TimeControl "600"]

{[%evp 9,140,0,0,-4,16,0,31,19,28,7,31,26,33,10,16,22,25,16,25,26,33,-20,6,0,0,0,-1,-96,-106,-150,-138,-152,-145,-144,-143,-153,-153,-155,-158,-153,-160,-164,-154,-181,-160,-160,-105,-106,-95,-97,-92,-125,-125,-125,-125,-118,-118,-103,-103,-103,-103,-144,-144,-144,-144,-144,-144,-144,0,-144,-144,-144,-144,-144,-144,-144,0,-144,-144,-145,-144,-151,-144,-144,-144,-144,0,-144,-144,-144,-144,-144,-144,-144,-143,-136,-137,-144,-135,-127,-86,-86,-86,-86,-88,-88,-88,-88,-70,-70,-70,-70,0,-70,-70,-70,-63,-70,-70,-70,0,-70,-70,-70,-70,-70,-70,-70,0,-70,0,-70,0]} 1. d4 {[%emt 0:00:00]} Nf6 {[%emt 0:00:02]} 2. Bf4 {[%emt 0:00:01]} b6 {[%emt 0:00:01]} 3. e3 {[%emt 0:00:02]} Bb7 {[%emt 0:00:01]} 4. c4 {[%emt 0:00:00]} e6 {[%emt 0:00:02]} 5. Nc3 {[%emt 0:00:01]} Bb4 {[%emt 0:00:24]} 6. Nge2 {[%emt 0:00:18] A45: Trompowsky Attack.} Nh5 {[%emt 0:00:03]} 7. Bg3 {[%emt 0:00:40]} g6 $146 {[%emt 0:01:42]} ({Predecessor:} 7... Nc6 8. a3 Nxg3 9. hxg3 Bxc3+ 10. Nxc3 Ne7 11. d5 h6 12. Qg4 Kf8 13. O-O-O Qc8 {1-0 Keymer,V (2717)-Erigaisi,A (2712) Tata Steel India blitz 2023 (10)}) 8. a3 {[%emt 0:00:04] White is slightly better.} Be7 {[%emt 0:00:06]} 9. d5 {[%emt 0:00:06]} Bf6 {[%emt 0:00:12]} 10. Qc2 {[%emt 0:00:09]} d6 {[%emt 0:00:10]} 11. Nf4 {[%emt 0:00:41]} Nxf4 {[%emt 0:00:17]} 12. Bxf4 {[%emt 0:00:01]} Nd7 {[%emt 0:00:22]} 13. Be2 {[%emt 0:00:01]} Qe7 {[%emt 0:00:12]} 14. e4 {[%emt 0:01:24]} O-O {[%emt 0:00:07]} 15. Be3 {[%emt 0:00:18]} (15. Bh6 $14) 15... exd5 {[%emt 0:00:42]} 16. exd5 {[%emt 0:00:07]} Nc5 {[%emt 0:00:37]} 17. O-O {[%emt 0:00:03]} Bc8 {[%emt 0:00:03]} 18. g4 {[%emt 0:01:01] Dodges Bf5} (18. Rae1 $11) 18... Be5 $17 {[%emt 0:00:26]} 19. b4 {[%emt 0:00:29] [#]} Qh4 $1 {[%emt 0:00:38][%csl Ge5,LRg4,LRh2][%cal Rh4h2] Black attacks} 20. f4 {[%emt 0:00:03]} Bxc3 {[%emt 0:00:01]} 21. Qxc3 {[%emt 0:00:01]} Bxg4 {[%emt 0:00:27]} 22. bxc5 {[%emt 0:00:01] Threatens to win with Bf2.} Bxe2 {[%emt 0:00:01]} 23. Rf2 {[%emt 0:00:01] [#]} Bg4 {[%emt 0:00:10]} ({Stronger than} 23... Qg4+ 24. Rg2 Qf3 25. Re1 $16) 24. cxd6 {[%emt 0:00:01]} cxd6 {[%emt 0:00:00]} 25. Bd4 {[%emt 0:00:05]} f6 {[%emt 0:00:40]} 26. Re1 {[%emt 0:00:11]} Bf5 {[%emt 0:00:04]} 27. Qg3 {[%emt 0:01:10]} Qxg3+ {[%emt 0:00:01]} (27... Qh5 $142 28. Qf3 Bg4) 28. hxg3 {[%emt 0:00:01]} Kf7 {[%emt 0:00:06]} 29. Rfe2 {[%emt 0:00:03]} Rfe8 {[%emt 0:00:01] Prevents Re7+.} 30. Rxe8 {[%emt 0:00:13]} Rxe8 {[%emt 0:00:00]} 31. Rxe8 {[%emt 0:00:00]} Kxe8 {[%emt 0:00:00]} 32. Bxf6 {[%emt 0:00:01][%mdl 4096] Endgame KB-KB} Bd3 {[%emt 0:00:01]} 33. Kf2 {[%emt 0:00:00]} Bxc4 {[%emt 0:00:00]} 34. Ke3 {[%emt 0:00:01]} Bxd5 {[%emt 0:00:01]} 35. Kd4 {[%emt 0:00:00]} Bf3 {[%emt 0:00:04]} 36. Bg5 {[%emt 0:00:04]} Kd7 {[%emt 0:00:01]} 37. Bf6 {[%emt 0:00:04]} Ke6 {[%emt 0:00:14]} 38. Bd8 {[%emt 0:00:02]} Kd7 {[%emt 0:00:05]} 39. Bf6 {[%emt 0:00:02]} a5 {[%emt 0:00:06]} 40. Kd3 {[%emt 0:00:11]} Bg4 {[%emt 0:00:09]} 41. Ke3 {[%emt 0:00:10]} Kc6 {[%emt 0:00:02]} 42. Kd4 {[%emt 0:00:10]} Kd7 {[%emt 0:00:15]} 43. Ke3 $1 {[%emt 0:00:02]} Be6 {[%emt 0:00:01]} 44. Kd3 {[%emt 0:00:01]} Kc7 {[%emt 0:00:07]} 45. Ke3 {[%emt 0:00:04]} h5 {[%emt 0:00:07]} 46. Kd3 {[%emt 0:00:01]} Bf5+ {[%emt 0:00:02]} 47. Ke3 {[%emt 0:00:02]} Be6 {[%emt 0:00:01]} 48. Kd3 $1 {[%emt 0:00:01]} Bd5 {[%emt 0:00:01]} 49. Ke3 {[%emt 0:00:02]} Bc4 {[%emt 0:00:00]} 50. Ke4 {[%emt 0:00:05]} Bb3 {[%emt 0:00:02]} 51. Ke3 {[%emt 0:00:01]} b5 {[%emt 0:00:03]} 52. Bc3 {[%emt 0:00:01]} Kb6 {[%emt 0:00:00]} 53. Kd4 {[%emt 0:00:02]} Be6 {[%emt 0:00:02]} 54. Bd2 {[%emt 0:00:01]} b4 {[%emt 0:00:01]} 55. axb4 {[%emt 0:00:01]} a4 {[%emt 0:00:00]} 56. Bc1 {[%emt 0:00:00]} Kb5 {[%emt 0:00:01]} 57. Ba3 {[%emt 0:00:01]} Bc4 {[%emt 0:00:01]} 58. Kc3 {[%emt 0:00:02]} d5 {[%emt 0:00:01]} 59. Kd4 {[%emt 0:00:02]} Bb3 {[%emt 0:00:01]} 60. Kc3 {[%emt 0:00:02]} Bc4 {[%emt 0:00:00]} 61. Kd4 {[%emt 0:00:01]} Kc6 {[%emt 0:00:01]} 62. Ke5 {[%emt 0:00:06]} Kd7 {[%emt 0:00:03]} 63. Bb2 {[%emt 0:00:02]} Kc7 {[%emt 0:00:02]} 64. Bc1 {[%emt 0:00:02]} Kc6 {[%emt 0:00:01]} 65. Ba3 $1 {[%emt 0:00:01]} Bd3 {[%emt 0:00:02]} 66. Kd4 {[%emt 0:00:01]} Be4 {[%emt 0:00:00]} 67. Ke5 {[%emt 0:00:02]} Kb5 {[%emt 0:00:01]} 68. Kd4 {[%emt 0:00:01]} Kc6 {[%emt 0:00:00]} 69. Ke5 {[%emt 0:00:01]} Kb5 {[%emt 0:00:01] and ...Kc4 would now be decisive} 70. Kd4 {[%emt 0:00:00]} Kc6 {[%emt 0:00:00] Whites escaped into a draw.   Weighted Error Value: White=0.09 (flawless) /Black=0.16 (very precise)   Mistake:       	White=2     	Black=2      Inaccurate:     	White=3     	Black=3      OK:         	White=18    	Black=21     Best:        	White=8     	Black=3      Strong:       	White=3     	---} (70... Kb6 $15) 1/2-1/2

[Event "CCT Chessable Masters Playoffs 2025"]
[Site "Online"]
[Date "2025.02.18"]
[Round "51"]
[White "Duda, Jan-Krzysztof"]
[Black "Grischuk, Alexander"]
[Result "1-0"]
[Annotator "TA"]
[ECO "C00"]
[WhiteElo "2739"]
[BlackElo "2687"]
[PlyCount "67"]
[EventDate "2025.02.13"]
[EventType "k.o."]
[EventCountry "NET"]
[SourceTitle "playchess.com"]
[Source "ChessBase"]
[SourceQuality "1"]
[TimeControl "600"]

{[%evp 12,67,16,8,14,14,29,21,50,25,36,34,37,28,46,31,56,38,42,41,50,38,51,58,64,31,89,102,101,95,102,113,108,62,66,77,69,72,69,67,81,70,90,89,181,184,171,172,374,362,347,154,136,154,149,141,522,512]} 1. e4 {[%emt 0:00:00]} c5 {[%emt 0:02:35]} 2. Nf3 {[%emt 0:00:03]} e6 {[%emt 0:00:00]} 3. g3 {[%emt 0:00:12]} Nc6 {[%emt 0:00:03]} 4. Bg2 {[%emt 0:00:02]} Nf6 {[%emt 0:00:01]} 5. Qe2 {[%emt 0:00:01]} d6 {[%emt 0:00:08]} 6. O-O {[%emt 0:00:02]} Be7 {[%emt 0:00:01]} 7. c3 {[%emt 0:00:02]} e5 {[%emt 0:00:01] C00: French: Unusual White 2nd moves.} 8. Rd1 {[%emt 0:00:02]} O-O {[%emt 0:00:01]} 9. d4 {[%emt 0:00:08]} cxd4 {[%emt 0:00:19] The position is equal.} 10. cxd4 {[%emt 0:00:00]} Bg4 {[%emt 0:00:04] Hoping for ...Nxd4.} 11. dxe5 {[%emt 0:00:01]} Nxe5 {[%emt 0:00:00]} 12. Nc3 {[%emt 0:00:07][%cal Bb1c3,Bc3e2,Be2d4,Bd4f5][%mdl 32]} Qc8 $146 {[%emt 0:00:09]} (12... Rc8 13. Bf4 Qa5 14. Rac1 a6 15. Kh1 Rfe8 16. h3 Be6 17. Nd4 Bc4 18. Qe3 Bf8 {0-1 Shuvalova,P (2498)-Hansen,E (2606) Titled Tuesday intern op 12th Jul Late blitz 2022 (10)}) 13. Bf4 {[%emt 0:00:10]} Qe6 {[%emt 0:00:11] A sharp opening} 14. Rd2 {[%emt 0:00:46][%cal Of3d4]} Rac8 {[%emt 0:00:12] [#]} 15. Nd4 $1 {[%emt 0:00:46]} Bxe2 {[%emt 0:00:27]} 16. Nxe6 {[%emt 0:00:01]} fxe6 {[%emt 0:00:01][%cal Bf7e6,Be6e5][%mdl 32]} 17. Nxe2 {[%emt 0:00:22]} Nfg4 {[%emt 0:02:28]} 18. Nd4 {[%emt 0:00:23]} Nc4 {[%emt 0:00:07]} (18... g5 $1 $14 19. Bxe5 dxe5 20. Nxe6 Rxf2 21. Rxf2 Nxf2) 19. Rc2 $16 {[%emt 0:00:04][%cal Og2h3]} e5 {[%emt 0:00:04]} 20. Nf5 {[%emt 0:00:03]} Bf6 {[%emt 0:00:21]} 21. Bc1 {[%emt 0:01:14]} g6 {[%emt 0:00:01]} 22. h3 {[%emt 0:00:29]} (22. Bf1 $16 gxf5 23. Rxc4 (23. Bxc4+ Kg7 $18)) 22... gxf5 $14 {[%emt 0:00:26]} 23. exf5 {[%emt 0:00:00][%cal Og2b7]} (23. hxg4 fxg4 24. Bh6 Bg7 $17) 23... Nxf2 {[%emt 0:00:09]} 24. Rxf2 {[%emt 0:00:31][%cal Oc1h6]} e4 {[%emt 0:00:02]} 25. Bxe4 {[%emt 0:00:01][%cal Oc1h6]} Bd4 {[%emt 0:00:01] [#]} 26. Bh6 $1 $36 {[%emt 0:00:00][%mdl 2048] Black is under pressure.} Rf6 {[%emt 0:00:25] [#]} 27. Bg5 {[%emt 0:00:02] A strong pair of Bishops.} (27. Bd5+ $2 Kh8 28. Be6 Rc5 $19) 27... Kg7 {[%emt 0:00:06] [#]} 28. Rd1 $1 $18 {[%emt 0:00:29]} Bxf2+ {[%emt 0:00:02]} 29. Kxf2 {[%emt 0:00:00]} Re8 $2 {[%emt 0:00:07]} (29... Rf7 30. b3 Re8) 30. Bxf6+ {[%emt 0:00:33]} Kxf6 {[%emt 0:00:01]} 31. Bd5 {[%emt 0:00:01]} (31. Bxb7 Rb8 $16) (31. Kf3 $18 {is the precise move to win.}) 31... Nxb2 $16 {[%emt 0:00:13]} 32. Rd2 {[%emt 0:00:01]} Na4 {[%emt 0:00:02]} 33. Bxb7 {[%emt 0:00:13] Strongly threatening Bc6.} Kxf5 $2 {[%emt 0:00:19][%mdl 8192]} (33... Nc3 $16 {is more resistant.} 34. g4 (34. Rxd6+ Kxf5 35. g4+ Kg5 $18) 34... d5) 34. Bc6 {[%emt 0:00:04] Weighted Error Value: White=0.15 (very precise) /Black=0.45  Loses game:     	---       	Black=1      Missed win:     	White=1     	---        Mistake:       	White=1     	Black=3      Inaccurate:     	White=1     	Black=1      OK:         	White=14    	Black=7      Best:        	White=1     	Black=6      Strong:       	White=1     	---} ({Less strong is} 34. Rxd6 Rb8 $18) 1-0

[Event "CCT Chessable Masters Playoffs 2025"]
[Site "Online"]
[Date "2025.02.18"]
[Round "51"]
[White "Giri, Anish"]
[Black "Sevian, Samuel"]
[Result "1/2-1/2"]
[Annotator "TA"]
[ECO "A20"]
[WhiteElo "2728"]
[BlackElo "2692"]
[PlyCount "196"]
[EventDate "2025.02.13"]
[EventType "k.o."]
[EventCountry "NET"]
[SourceTitle "playchess.com"]
[Source "ChessBase"]
[SourceQuality "1"]
[TimeControl "600"]

{[%evp 9,195,16,8,20,10,16,16,0,38,0,16,7,10,14,25,9,16,-4,57,49,59,26,51,59,40,45,40,37,51,30,27,27,16,25,39,28,45,22,26,3,3,3,3,0,4,3,4,8,3,6,1,2,0,0,0,0,0,-8,0,0,0,-18,-15,-18,-18,-16,-16,-54,-43,-66,-66,-70,-46,-53,0,0,0,0,0,0,0,0,0,0,0,0,0,0,0,0,0,0,0,0,0,0,0,0,0,0,0,0,0,0,0,0,0,0,0,0,0,0,0,0,0,0,0,-15,-15,-15,-15,-15,-15,-15,-1,-1,0,-15,-15,-15,-15,-15,-15,-15,-15,-15,-1,-1,-1,-15,-15,-15,-15,-15,-15,-15,-1,-15,-15,-15,0,0,0,-15,-15,-15,-15,-15,-1,-15,-15,-15,-1,-15,-1,-1,0,-15,0,0,0,0,0,0,0,0,0,0,0,0,0,0,0,0,0,0,0,0]} 1. c4 {[%emt 0:00:01]} e5 {[%emt 0:00:02]} 2. g3 {[%emt 0:00:01]} c6 {[%emt 0:00:10]} 3. Nf3 {[%emt 0:00:04]} e4 {[%emt 0:00:01]} 4. Nd4 {[%emt 0:00:01]} d5 {[%emt 0:00:00]} 5. cxd5 {[%emt 0:00:04]} Qxd5 {[%emt 0:00:00]} 6. Nc2 {[%emt 0:00:09] A20: English Opening: 1...e5.} Nf6 {[%emt 0:00:01]} 7. Nc3 {[%emt 0:00:04]} Qe5 {[%emt 0:00:01]} 8. Bg2 {[%emt 0:00:02]} Na6 {[%emt 0:00:01]} 9. Rb1 {[%emt 0:00:30]} h5 {[%emt 0:00:46]} 10. d4 {[%emt 0:01:18]} exd3 {[%emt 0:00:06]} 11. Qxd3 {[%emt 0:00:00]} Nc5 {[%emt 0:00:55]} 12. Qd4 {[%emt 0:00:08]} Bd6 {[%emt 0:00:49][%cal Bf8d6,Bd6e5,Be5c7][%mdl 32]} 13. O-O $146 {[%emt 0:00:15]} ({Predecessor:} 13. b4 Qxd4 14. Nxd4 Be5 15. bxc5 Bxd4 16. Na4 Nd7 17. Ba3 Kd8 18. O-O Kc7 19. Rfd1 {0-1 Priyanka,N (2289)-Kollars,D (2647) Bayern-chI Bank Hofmann 27th 2024 (3)}) 13... Ne6 {[%emt 0:00:24]} ({Better is} 13... Bf5 $11 14. e4 Bh7 (14... Nfxe4 $2 {too greedy.} 15. Re1 $18) (14... Bxe4 $2 15. Qxe5+ Bxe5 16. Nxe4 $18) (14... Ncxe4 $2 15. Re1 $18)) 14. Qxe5 $14 {[%emt 0:00:02]} Bxe5 {[%emt 0:00:01]} 15. Rd1 {[%emt 0:00:25]} h4 {[%emt 0:00:10]} 16. Na3 {[%emt 0:00:29][%cal Bc2a3,Ba3c4,Bc4e5][%mdl 32]} hxg3 {[%emt 0:00:03]} 17. hxg3 {[%emt 0:00:01]} O-O {[%emt 0:00:17]} 18. Nc4 {[%emt 0:00:02]} Bc7 {[%emt 0:00:23]} 19. b4 {[%emt 0:00:03]} Rd8 {[%emt 0:00:17]} 20. Rxd8+ {[%emt 0:00:27]} Nxd8 {[%emt 0:00:01]} 21. Bf4 {[%emt 0:00:01]} Bxf4 {[%emt 0:00:13]} 22. gxf4 {[%emt 0:00:00]} Be6 {[%emt 0:00:17]} 23. Ne5 {[%emt 0:00:09]} a5 {[%emt 0:00:26]} 24. b5 {[%emt 0:00:33]} cxb5 {[%emt 0:00:02]} 25. Rxb5 {[%emt 0:00:02][%cal Oa2a4]} Rc8 {[%emt 0:00:01]} 26. Nd5 {[%emt 0:00:55]} Nxd5 {[%emt 0:01:05]} 27. Bxd5 {[%emt 0:00:02]} Bxd5 {[%emt 0:00:01]} 28. Rxd5 $11 {[%emt 0:00:01][%mdl 4096] Endgame KRN-KRN} Ne6 {[%emt 0:00:00]} 29. Rxa5 {[%emt 0:00:15]} Nxf4 {[%emt 0:00:03]} 30. e3 {[%emt 0:00:01]} Ne6 {[%emt 0:00:08]} 31. Kg2 {[%emt 0:00:04]} f6 {[%emt 0:00:03]} 32. Nf3 {[%emt 0:00:06]} Rc2 {[%emt 0:00:06]} 33. Ra8+ {[%emt 0:00:18]} Kf7 {[%emt 0:00:11]} 34. a4 {[%emt 0:00:12]} Ra2 {[%emt 0:00:08]} 35. Rb8 {[%emt 0:00:14]} Nc5 {[%emt 0:00:03]} 36. Nd4 {[%emt 0:00:02]} Kg6 {[%emt 0:00:14]} 37. Kf3 {[%emt 0:00:06]} Rxa4 {[%emt 0:00:04]} 38. Ne2 {[%emt 0:00:01]} Kf7 {[%emt 0:00:10]} 39. Rc8 {[%emt 0:00:01]} Ne6 {[%emt 0:00:02]} 40. Nc3 {[%emt 0:00:03]} Ra6 {[%emt 0:00:11]} 41. Rb8 {[%emt 0:00:03]} Nc5 {[%emt 0:00:02]} (41... Rb6 $15) 42. Ne4 $1 {[%emt 0:00:03] The position is equal.} b6 {[%emt 0:00:02]} 43. Nxc5 {[%emt 0:00:08]} bxc5 {[%emt 0:00:00] KR-KR. Black is a pawn up.} 44. Rb7+ {[%emt 0:00:01]} Kg6 {[%emt 0:00:01]} 45. Rc7 {[%emt 0:00:00] Prevents Rc6.} Ra5 {[%emt 0:00:01]} 46. Ke4 $1 {[%emt 0:00:01]} Ra2 {[%emt 0:00:01]} 47. f4 {[%emt 0:00:02][%cal Bf2f4,Bf4f5][%mdl 32]} Rc2 {[%emt 0:00:01]} 48. f5+ {[%emt 0:00:09]} Kh6 {[%emt 0:00:04]} 49. Kf4 {[%emt 0:00:01]} Rc1 {[%emt 0:00:07]} 50. Rc8 {[%emt 0:00:01]} Kh7 {[%emt 0:00:14]} 51. Ke4 {[%emt 0:00:04]} Rc3 {[%emt 0:00:02]} 52. Kf4 {[%emt 0:00:04]} Rc4+ {[%emt 0:00:02]} 53. e4 {[%emt 0:00:02]} Rc3 {[%emt 0:00:02]} 54. Rc7 {[%emt 0:00:02]} Kh6 {[%emt 0:00:02]} 55. Rc8 {[%emt 0:00:02]} Kh7 {[%emt 0:00:07] Prevents Rh8+} 56. Rc7 {[%emt 0:00:00]} Rc1 {[%emt 0:00:12]} 57. Ke3 {[%emt 0:00:05]} Kh6 {[%emt 0:00:03]} 58. Kd2 {[%emt 0:00:05]} Rc4 {[%emt 0:00:01]} 59. Kd3 {[%emt 0:00:00]} Ra4 {[%emt 0:00:04]} 60. Rxc5 {[%emt 0:00:02]} Kg5 {[%emt 0:00:01]} 61. Rc7 {[%emt 0:00:04]} Kf4 {[%emt 0:00:03]} 62. Rxg7 {[%emt 0:00:03]} Ra3+ {[%emt 0:00:02]} 63. Ke2 {[%emt 0:00:01]} Kxe4 {[%emt 0:00:01]} 64. Rg4+ {[%emt 0:00:01]} Kxf5 {[%emt 0:00:00]} 65. Rc4 {[%emt 0:00:00]} Ke5 {[%emt 0:00:01]} 66. Kf2 {[%emt 0:00:01]} Ra2+ {[%emt 0:00:00]} 67. Kf3 {[%emt 0:00:01]} Ra3+ {[%emt 0:00:01]} 68. Kf2 $1 {[%emt 0:00:00]} f5 {[%emt 0:00:00]} 69. Rb4 {[%emt 0:00:01]} Kf6 {[%emt 0:00:01]} 70. Rc4 {[%emt 0:00:01]} Kg5 {[%emt 0:00:00]} 71. Rb4 {[%emt 0:00:00]} Rh3 {[%emt 0:00:01]} 72. Rc4 $1 {[%emt 0:00:02]} Rh2+ {[%emt 0:00:01]} 73. Kg3 {[%emt 0:00:01]} Ra2 {[%emt 0:00:00]} 74. Kf3 {[%emt 0:00:00]} Ra3+ {[%emt 0:00:00]} 75. Kf2 {[%emt 0:00:01]} Rb3 {[%emt 0:00:01]} 76. Kg2 {[%emt 0:00:00]} Kf6 {[%emt 0:00:01]} 77. Kf2 {[%emt 0:00:01]} Ke5 {[%emt 0:00:00]} 78. Ra4 {[%emt 0:00:01]} Rh3 {[%emt 0:00:02]} 79. Ra5+ {[%emt 0:00:01]} Kf4 {[%emt 0:00:01]} 80. Ra4+ {[%emt 0:00:00]} Kg5 {[%emt 0:00:00]} 81. Rb4 {[%emt 0:00:00]} Rd3 {[%emt 0:00:01]} 82. Kg2 {[%emt 0:00:01]} Kf6 {[%emt 0:00:02]} 83. Kf2 {[%emt 0:00:00]} Ke5 {[%emt 0:00:01]} 84. Ra4 {[%emt 0:00:01]} Rc3 {[%emt 0:00:01]} 85. Rb4 {[%emt 0:00:01]} Rc5 {[%emt 0:00:00]} 86. Ra4 {[%emt 0:00:00]} Rd5 {[%emt 0:00:00]} 87. Kf3 {[%emt 0:00:01]} Rd3+ {[%emt 0:00:01]} 88. Kf2 {[%emt 0:00:01]} Rd4 {[%emt 0:00:00]} 89. Rxd4 {[%emt 0:00:03]} Kxd4 {[%emt 0:00:01] KP-K. Black is a pawn up.} 90. Kf3 {[%emt 0:00:00]} Ke5 {[%emt 0:00:00][%cal Bd4e5,Be5f5,Bf5e4,Be4f4,Bf4e3,Be3f3][%mdl 32]} 91. Ke3 {[%emt 0:00:00]} f4+ {[%emt 0:00:00][%cal Bf5f4,Bf4f3,Bf3f2][%mdl 32]} 92. Kf3 {[%emt 0:00:01][%cal Be3f3,Bf3f2,Bf2e2][%mdl 32]} Kf5 {[%emt 0:00:00]} 93. Kf2 {[%emt 0:00:00]} Ke4 {[%emt 0:00:00]} 94. Ke2 {[%emt 0:00:01]} f3+ {[%emt 0:00:00]} 95. Kf2 {[%emt 0:00:00]} Kf4 {[%emt 0:00:00]} 96. Kf1 {[%emt 0:00:01]} Ke3 {[%emt 0:00:01] [#] ( -> ...f2)} 97. Ke1 {[%emt 0:00:00]} f2+ {[%emt 0:00:00]} 98. Kf1 {[%emt 0:00:00]} Kf3 {[%emt 0:00:00] Weighted Error Value: White=0.05 (flawless) /Black=0.06 (flawless)   Mistake:       	---       	Black=2      Inaccurate:     	White=3     	Black=1      OK:         	White=40    	Black=32     Best:        	White=6     	Black=2      Strong:       	White=4     	---} 1/2-1/2